fUSD/lending_fUSD_20260128
["ID","MTS","AMOUNT","RATE_DAILY","PERIOD"]
[403884160,1769627441632,-209.6880271,0.00035676,42]
[403884162,1769627441640,-266.0,0.00035702,2]
[403884164,1769627441650,-200.0,0.00035702,2]
[403884166,1769627441660,-150.0,0.00035702,2]
[403884168,1769627441670,-195.894,0.00035702,2]
[403884170,1769627441679,-228.485,0.00035702,2]
[403884172,1769627441688,-277.537,0.00035702,2]
[403884173,1769627441697,-165.436,0.00035702,2]
[403884174,1769627441706,-158.439,0.00035702,2]
[403884175,1769627441715,-199.072,0.00035702,2]
[403884176,1769627441723,-150.0,0.00035702,2]
[403884177,1769627441732,-151.0,0.00035702,2]
[403884178,1769627441741,-150.902,0.00035702,2]
[403884179,1769627441750,-3477.0,0.00035702,2]
[403884180,1769627441760,-1333.0,0.00035702,2]
[403884181,1769627441769,-1408.0,0.00035702,2]
[403884182,1769627441778,-625.132,0.00035702,2]
[403884183,1769627441786,-1270.0,0.00035702,2]
[403884184,1769627441795,-184.0,0.00035702,2]
[403884185,1769627441804,-1204.0,0.00035702,2]
[403884186,1769627441813,-916.0,0.00035702,2]
[403884188,1769627441823,-338.828,0.00035743,2]
[403884190,1769627441833,-6572.0,0.00035743,2]
[403884192,1769627441842,-1406.74876121,0.00036358,30]
[403884194,1769627441852,-800.26,0.00036712,120]
[403884196,1769627441862,-155.60519804,0.00036831,2]
[403884198,1769627441872,-152.21,0.00036831,2]
[403884200,1769627441881,-578.20924308,0.00036841,2]
[403884202,1769627441892,-2000.0,0.00036841,2]
[403884204,1769627441901,-2000.0,0.00036841,2]
[403884206,1769627441911,-2000.0,0.00036841,2]
[403884208,1769627441920,-2000.0,0.00036841,2]
[403884210,1769627441930,-854.2589148,0.00036841,2]
[403884212,1769627441939,-2000.0,0.00036841,2]
[403884215,1769627441949,-2000.0,0.00036841,2]
[403884217,1769627441959,-500.0,0.00036841,2]
[403884219,1769627441969,-2000.0,0.00036841,2]
[403884221,1769627441978,-500.0,0.00036841,2]
[403884223,1769627441988,-2000.0,0.00036841,2]
[403884225,1769627441997,-500.0,0.00036841,2]
[403884227,1769627442007,-2000.0,0.00036841,2]
[403884229,1769627442018,-594.20635627,0.00036841,2]
[403884231,1769627442030,-2000.0,0.00036841,2]
[403884233,1769627442039,-2000.0,0.00036841,2]
[403884235,1769627442049,-500.0,0.00036841,2]
[403884237,1769627442059,-500.0,0.00036841,2]
[403884238,1769627442069,-500.0,0.00036841,2]
[403884240,1769627442078,-500.0,0.00036841,2]
[403884242,1769627442088,-500.0,0.00036841,2]
[403884245,1769627442097,-500.0,0.00036841,2]
[403884247,1769627442109,-500.0,0.00036841,2]
[403884249,1769627442119,-500.0,0.00036841,2]
[403884251,1769627442128,-500.0,0.00036841,2]
[403884252,1769627442138,-500.0,0.00036841,2]
[403884254,1769627442148,-359.76179104,0.00036841,2]
[403884256,1769627442158,-3000.0,0.00036841,2]
[403884259,1769627442168,-3000.0,0.00036841,2]
[403884261,1769627442178,-3000.0,0.00036841,2]
[403884263,1769627442187,-209.40437684,0.00036841,2]
[403884265,1769627442197,-204.0925976,0.00036841,2]
[403884267,1769627442207,-117429.36704238,0.00036888,60]
[403884269,1769627442216,-237.102864,0.00036888,31]
[403884271,1769627442226,-151.0,0.00036888,31]
[403884273,1769627442235,-151.0,0.00036888,31]
[403884275,1769627442244,-182.151953,0.00036888,31]
[403884277,1769627442254,-182.151953,0.00036888,31]
[403884279,1769627442267,-182.151953,0.00036888,31]
[403884281,1769627442276,-182.151953,0.00036888,31]
[403884283,1769627442286,-151.0,0.00036888,31]
[403884285,1769627442295,-151.0,0.00036888,7]
[403884287,1769627442304,-218.159228,0.00036888,31]
[403884289,1769627442313,-218.159228,0.00036888,31]
[403884291,1769627442322,-218.159228,0.00036888,31]
[403884293,1769627442331,-218.159229,0.00036888,31]
[403884295,1769627442341,-217.15233878,0.00036896,2]
[403884297,1769627442350,-225.18697532,0.00036951,2]
[403884299,1769627442360,-233.51889341,0.00037006,2]
[403884301,1769627442370,-408.84237777,0.00037058,10]
[403884303,1769627442379,-242.15909246,0.00037061,2]
[403884305,1769627442389,-262.5,0.00037088,30]
[403884308,1769627442398,-510.39,0.000371,14]
[403884310,1769627442407,-1541.59,0.000371,14]
[403884312,1769627442417,-251.11897888,0.00037116,2]
[403884314,1769627442426,-7666.61,0.00037166,2]
[403884316,1769627442436,-260.4103811,0.00037171,2]
[403884318,1769627442445,-270.0455652,0.00037226,2]
[403884320,1769627442454,-280.03725112,0.00037281,2]
[403884322,1769627442464,-290.39862941,0.00037336,2]
[403884324,1769627442474,-885.86649465,0.00037389,2]
[403884326,1769627442484,-373.07297731,0.00037389,2]
[403884328,1769627442493,-301.1433787,0.00037391,2]
[403884330,1769627442502,-1361.5,0.00037637,30]
[403884332,1769627442512,-241.67,0.000377,14]
[403884334,1769627442521,-386.48,0.000377,2]
[403884336,1769627442531,-386.87667747,0.00037937,2]
[403884338,1769627442540,-1000.0,0.00038,2]
[403884340,1769627442549,-1361.5,0.00038187,30]
[403884342,1769627442558,-1039.95171242,0.00038335,2]
[403884344,1769627442567,-210.677728,0.00038356,120]
[403884346,1769627442577,-151.0,0.00038356,120]
[403884348,1769627442586,-151.0,0.00038356,120]
[403884350,1769627442596,-277.90398,0.00038356,120]
[403884352,1769627442609,-183.893422,0.00038356,120]
[403884355,1769627442618,-151.0,0.00038356,120]
[403884357,1769627442628,-151.0,0.00038356,120]
[403884358,1769627442638,-151.0,0.00038356,120]
[403884361,1769627442649,-151.0,0.00038356,120]
[403884363,1769627442658,-151.0,0.00038356,120]
[403884364,1769627442670,-151.0,0.00038356,120]
[403884366,1769627442680,-151.0,0.00038356,120]
[403884368,1769627442689,-151.0,0.00038356,120]
[403884370,1769627442699,-151.0,0.00038356,120]
[403884372,1769627442708,-151.0,0.00038356,120]
[403884374,1769627442717,-151.0,0.00038356,120]
[403884376,1769627442726,-151.0,0.00038356,120]
[403884378,1769627442735,-151.0,0.00038356,120]
[403884380,1769627442744,-279.692417,0.00038356,120]
[403884382,1769627442753,-151.0,0.00038356,120]
[403884384,1769627442762,-151.0,0.00038356,120]
[403884386,1769627442771,-151.0,0.00038356,120]
[403884389,1769627442781,-151.0,0.00038356,120]
[403884391,1769627442790,-151.0,0.00038356,120]
[403884394,1769627442799,-151.0,0.00038356,120]
[403884397,1769627442809,-237.094121,0.00038356,120]
[403884399,1769627442818,-151.0,0.00038356,15]
[403884402,1769627442827,-151.0,0.00038356,15]
[403884406,1769627442837,-151.0,0.00038356,15]
[403884408,1769627442846,-151.0,0.00038356,15]
[403884410,1769627442856,-151.0,0.00038356,15]
[403884412,1769627442866,-151.0,0.00038356,15]
[403884414,1769627442875,-151.0,0.00038356,15]
[403884417,1769627442884,-151.0,0.00038356,15]
[403884419,1769627442893,-151.0,0.00038356,15]
[403884421,1769627442903,-151.0,0.00038356,15]
[403884423,1769627442912,-151.0,0.00038356,120]
[403884425,1769627442921,-151.0,0.00038356,120]
[403884427,1769627442931,-151.0,0.00038356,120]
[403884429,1769627442941,-151.0,0.00038356,120]
[403884431,1769627442950,-151.0,0.00038356,120]
[403884433,1769627442960,-151.0,0.00038356,120]
[403884435,1769627442969,-151.0,0.00038356,120]
[403884437,1769627442979,-151.0,0.00038356,120]
[403884439,1769627442989,-151.0,0.00038356,120]
[403884441,1769627442998,-151.0,0.00038356,120]
[403884443,1769627443008,-151.0,0.00038356,120]
[403884445,1769627443018,-151.0,0.00038356,120]
[403884447,1769627443029,-151.0,0.00038356,120]
[403884449,1769627443039,-151.0,0.00038356,120]
[403884452,1769627443048,-151.0,0.00038356,120]
[403884454,1769627443059,-151.0,0.00038356,120]
[403884457,1769627443068,-256.650133,0.00038356,120]
[403884459,1769627443079,-151.0,0.00038356,120]
[403884461,1769627443088,-151.0,0.00038356,120]
[403884463,1769627443099,-151.0,0.00038356,120]
[403884465,1769627443108,-151.0,0.00038356,120]
[403884467,1769627443117,-151.0,0.00038356,120]
[403884469,1769627443127,-151.0,0.00038356,120]
[403884471,1769627443137,-151.0,0.00038356,120]
[403884473,1769627443146,-151.0,0.00038356,120]
[403884475,1769627443155,-151.0,0.00038356,120]
[403884477,1769627443164,-151.0,0.00038356,120]
[403884479,1769627443173,-151.0,0.00038356,120]
[403884481,1769627443183,-151.0,0.00038356,120]
[403884483,1769627443194,-151.0,0.00038356,120]
[403884485,1769627443203,-151.0,0.00038356,120]
[403884487,1769627443212,-151.0,0.00038356,120]
[403884489,1769627443221,-298.870064,0.00038356,120]
[403884491,1769627443230,-151.0,0.00038356,120]
[403884493,1769627443239,-151.0,0.00038356,120]
[403884495,1769627443248,-151.0,0.00038356,120]
[403884497,1769627443257,-151.0,0.00038356,120]
[403884499,1769627443266,-151.0,0.00038356,120]
[403884501,1769627443276,-151.0,0.00038356,120]
[403884503,1769627443286,-151.0,0.00038356,120]
[403884505,1769627443296,-151.0,0.00038356,120]
[403884507,1769627443305,-151.0,0.00038356,120]
[403884509,1769627443314,-151.0,0.00038356,120]
[403884511,1769627443323,-151.0,0.00038356,120]
[403884513,1769627443333,-151.0,0.00038356,120]
[403884515,1769627443343,-151.0,0.00038356,120]
[403884517,1769627443354,-151.0,0.00038356,120]
[403884519,1769627443363,-151.0,0.00038356,120]
[403884521,1769627443373,-151.0,0.00038356,120]
[403884523,1769627443383,-151.0,0.00038356,120]
[403884525,1769627443392,-151.0,0.00038356,120]
[403884527,1769627443401,-151.0,0.00038356,120]
[403884529,1769627443410,-151.0,0.00038356,120]
[403884530,1769627443419,-151.0,0.00038356,120]
[403884532,1769627443428,-151.0,0.00038356,120]
[403884535,1769627443438,-151.0,0.00038356,120]
[403884537,1769627443447,-151.0,0.00038356,120]
[403884538,1769627443456,-151.0,0.00038356,120]
[403884541,1769627443465,-151.0,0.00038356,120]
[403884542,1769627443474,-151.0,0.00038356,120]
[403884544,1769627443484,-280.734681,0.00038356,120]
[403884546,1769627443493,-151.0,0.00038356,120]
[403884548,1769627443502,-179.439276,0.00038356,120]
[403884550,1769627443511,-152.231005,0.00038356,120]
[403884552,1769627443520,-151.0,0.00038356,120]
[403884555,1769627443530,-151.0,0.00038356,120]
[403884557,1769627443539,-151.0,0.00038356,120]
[403884558,1769627443549,-377.908592,0.00038356,120]
[403884560,1769627443558,-377.908592,0.00038356,120]
[403884562,1769627443567,-377.908592,0.00038356,120]
[403884564,1769627443577,-377.908592,0.00038356,120]
[403884566,1769627443586,-377.908592,0.00038356,120]
[403884568,1769627443595,-377.908592,0.00038356,120]
[403884570,1769627443606,-377.908592,0.00038356,120]
[403884572,1769627443616,-377.908592,0.00038356,120]
[403884574,1769627443625,-377.908592,0.00038356,120]
[403884576,1769627443635,-377.908592,0.00038356,120]
[403884578,1769627443644,-377.908592,0.00038356,120]
[403884580,1769627443654,-377.908592,0.00038356,120]
[403884582,1769627443663,-377.908592,0.00038356,120]
[403884584,1769627443672,-377.908592,0.00038356,120]
[403884587,1769627443685,-377.908592,0.00038356,120]
[403884588,1769627443695,-377.908592,0.00038356,120]
[403884590,1769627443704,-377.908592,0.00038356,120]
[403884592,1769627443713,-377.908592,0.00038356,120]
[403884594,1769627443722,-377.908592,0.00038356,120]
[403884596,1769627443731,-377.908586,0.00038356,120]
[403884598,1769627443741,-151.0,0.00038356,120]
[403884600,1769627443750,-151.0,0.00038356,120]
[403884602,1769627443760,-287.434662,0.00038356,120]
[403884604,1769627443769,-151.0,0.00038356,120]
[403884606,1769627443778,-153.535175,0.00038356,120]
[403884609,1769627443792,-151.0,0.00038356,120]
[403884611,1769627443802,-151.0,0.00038356,120]
[403884614,1769627443812,-151.0,0.00038356,120]
[403884617,1769627443822,-151.0,0.00038356,120]
[403884619,1769627443832,-151.0,0.00038356,120]
[403884622,1769627443842,-151.0,0.00038356,120]
[403884625,1769627443851,-151.0,0.00038356,120]
[403884627,1769627443860,-216.414734,0.00038356,120]
[403884630,1769627443870,-151.0,0.00038356,120]
[403884633,1769627443879,-151.0,0.00038356,120]
[403884636,1769627443888,-258.918016,0.00038356,120]
[403884638,1769627443898,-151.0,0.00038356,120]
[403884640,1769627443907,-218.13,0.00038479,120]
[403884642,1769627443916,-328.15655843,0.00038485,2]
[403884644,1769627443925,-325.01,0.000385,30]
[403884646,1769627443934,-150.0,0.00038702,2]
[403884648,1769627443943,-150.0,0.00038702,2]
[403884650,1769627443952,-150.0,0.00038702,2]
[403884652,1769627443961,-150.0,0.00038702,2]
[403884654,1769627443970,-150.0,0.00038702,2]
[403884656,1769627443979,-150.0,0.00038702,2]
[403884658,1769627443988,-150.0,0.00038702,2]
[403884660,1769627443998,-150.0,0.00038702,2]
[403884662,1769627444006,-1270.0,0.00038702,2]
[403884664,1769627444015,-184.0,0.00038702,2]
[403884666,1769627444028,-916.0,0.00038702,2]
[403884668,1769627444037,-1361.5,0.00038737,30]
[403884670,1769627444046,-152.0,0.00038878,4]
[403884672,1769627444056,-161.02719989,0.00039157,2]
[403884674,1769627444066,-880.05458391,0.000392,2]
[403884676,1769627444076,-1550.57850947,0.000392,2]
[403884678,1769627444085,-1550.57850947,0.000392,2]
[403884680,1769627444097,-880.05458389,0.000392,2]
[403884682,1769627444106,-1550.57850947,0.000392,2]
[403884684,1769627444116,-1550.57850947,0.000392,2]
[403884685,1769627444125,-1550.57850947,0.000392,2]
[403884686,1769627444413,-1550.57850947,0.000392,2]
[403884687,1769627444423,-1361.5,0.00039287,120]
[403884688,1769627444432,-669.22,0.00039671,2]
[403884689,1769627444442,-1595.65574958,0.00039792,2]
[403884690,1769627444451,-1361.5,0.00039837,120]
[403884691,1769627444461,-4000.0,0.0004,8]
[403884692,1769627444470,-510.39,0.0004,14]
[403884693,1769627444479,-1541.59,0.0004,14]
[403884694,1769627444489,-5237.46535877,0.0004,120]
[403884695,1769627444498,-1361.5,0.00040387,120]
[403884696,1769627444508,-1008.0,0.000404,7]
[403884697,1769627444517,-408.35,0.00040451,30]
[403884699,1769627444526,-1000.0,0.00040462,30]
[403884701,1769627444535,-1000.0,0.00040653,14]
[403884703,1769627444544,-1000.0,0.00040927,14]
[403884705,1769627444553,-1361.5,0.00040937,120]
[403884707,1769627444562,-798.0,0.00041096,120]
[403884709,1769627444571,-386.48,0.000411,30]
[403884710,1769627444582,-181.6042369,0.000411,120]
[403884712,1769627444592,-181.6042369,0.000411,120]
[403884714,1769627444604,-181.6,0.000411,120]
[403884716,1769627444613,-158.90370729,0.000411,120]
[403884717,1769627444623,-158.90370729,0.000411,120]
[403884718,1769627444633,-158.90370729,0.000411,120]
[403884719,1769627444642,-158.90370729,0.000411,120]
[403884720,1769627444651,-158.90370729,0.000411,120]
[403884721,1769627444661,-268.18624537,0.000411,120]
[403884722,1769627444671,-268.18624537,0.000411,120]
[403884723,1769627444681,-268.18624537,0.000411,120]
[403884724,1769627444690,-268.18624537,0.000411,120]
[403884725,1769627444700,-268.18624537,0.000411,120]
[403884726,1769627444709,-268.18624537,0.000411,120]
[403884727,1769627444719,-268.18624537,0.000411,120]
[403884728,1769627444729,-268.18624537,0.000411,120]
[403884729,1769627444739,-268.18624537,0.000411,120]
[403884730,1769627444749,-268.18624537,0.000411,120]
[403884731,1769627444759,-268.18624537,0.000411,120]
[403884732,1769627444769,-268.18624537,0.000411,120]
[403884733,1769627444778,-268.18624537,0.000411,120]
[403884734,1769627444788,-268.18624537,0.000411,120]
[403884735,1769627444797,-268.18624537,0.000411,120]
[403884736,1769627444807,-268.18624537,0.000411,120]
[403884737,1769627444816,-268.18624537,0.000411,120]
[403884738,1769627444826,-268.18624537,0.000411,120]
[403884739,1769627444836,-268.18624537,0.000411,120]
[403884740,1769627444845,-268.18,0.000411,120]
[403884741,1769627444856,-625.76790586,0.000411,120]
[403884742,1769627444865,-625.76790586,0.000411,120]
[403884743,1769627444874,-625.76790586,0.000411,120]
[403884744,1769627444884,-625.76790586,0.000411,120]
[403884745,1769627444894,-625.76790586,0.000411,120]
[403884746,1769627444903,-625.76790586,0.000411,120]
[403884747,1769627444912,-625.76790586,0.000411,120]
[403884748,1769627444922,-625.76790586,0.000411,120]
[403884749,1769627444931,-625.76790586,0.000411,120]
[403884750,1769627444941,-625.76790586,0.000411,120]
[403884751,1769627444950,-625.76790586,0.000411,120]
[403884752,1769627444960,-625.76790586,0.000411,120]
[403884753,1769627444969,-625.76790586,0.000411,120]
[403884754,1769627444979,-625.76790586,0.000411,120]
[403884755,1769627444989,-561.10716315,0.000411,120]
[403884756,1769627444999,-561.10716315,0.000411,120]
[403884757,1769627445009,-561.10716315,0.000411,120]
[403884758,1769627445020,-561.10716315,0.000411,120]
[403884759,1769627445031,-561.10716315,0.000411,120]
[403884760,1769627445040,-561.10716315,0.000411,120]
[403884761,1769627445050,-561.10716315,0.000411,120]
[403884762,1769627445060,-561.10716315,0.000411,120]
[403884763,1769627445070,-561.10716315,0.000411,120]
[403884764,1769627445080,-561.10716315,0.000411,120]
[403884765,1769627445091,-561.10716315,0.000411,120]
[403884766,1769627445111,-561.10716315,0.000411,120]
[403884767,1769627445131,-561.10716315,0.000411,120]
[403884768,1769627445141,-561.10716315,0.000411,120]
[403884769,1769627445151,-561.10716315,0.000411,120]
[403884770,1769627445161,-561.10716315,0.000411,120]
[403884771,1769627445171,-561.10716315,0.000411,120]
[403884772,1769627445180,-561.10716315,0.000411,120]
[403884773,1769627445190,-561.10716315,0.000411,120]
[403884774,1769627445199,-561.1,0.000411,120]
[403884775,1769627445208,-1309.25004735,0.000411,120]
[403884776,1769627445218,-1309.25004735,0.000411,120]
[403884777,1769627445229,-1309.25004735,0.000411,120]
[403884778,1769627445238,-1309.25004735,0.000411,120]
[403884779,1769627445251,-1309.25004735,0.000411,120]
[403884780,1769627445260,-1309.25004735,0.000411,120]
[403884781,1769627445270,-1309.25004735,0.000411,120]
[403884782,1769627445279,-1309.25004735,0.000411,120]
[403884783,1769627445289,-1309.25004735,0.000411,120]
[403884784,1769627445299,-1309.25004735,0.000411,120]
[403884785,1769627445309,-1309.25004735,0.000411,120]
[403884786,1769627445319,-1309.25004735,0.000411,120]
[403884787,1769627445328,-1309.25004735,0.000411,120]
[403884788,1769627445337,-1309.25004735,0.000411,120]
[403884789,1769627445347,-1000.0,0.00041201,30]
[403884790,1769627445357,-158.90370729,0.00041272,120]
[403884791,1769627445368,-625.76790586,0.00041272,120]
[403884792,1769627445377,-1309.25004735,0.00041272,120]
[403884793,1769627445387,-241.67,0.000413,14]
[403884795,1769627445397,-1000.0,0.00041475,30]
[403884797,1769627445406,-1361.5,0.00041487,120]
[403884799,1769627445416,-533.22,0.00041644,120]
[403884801,1769627445427,-1000.0,0.00041681,30]
[403884803,1769627445436,-510.39,0.000417,14]
[403884805,1769627445446,-1541.59,0.000417,14]
[403884807,1769627445456,-150.0,0.00041702,2]
[403884809,1769627445466,-150.0,0.00041702,2]
[403884810,1769627445475,-1269.0,0.00041702,2]
[403884811,1769627445484,-184.0,0.00041702,2]
[403884812,1769627445494,-151.0,0.00041702,120]
[403884813,1769627445503,-200.089464,0.00041702,120]
[403884814,1769627445513,-151.0,0.00041702,120]
[403884815,1769627445523,-182.151953,0.00041702,120]
[403884816,1769627445532,-182.151953,0.00041702,120]
[403884817,1769627445542,-182.151953,0.00041702,120]
[403884818,1769627445552,-182.151948,0.00041702,120]
[403884819,1769627445562,-625.76790586,0.00041707,120]
[403884820,1769627445572,-1309.25004735,0.00041707,120]
[403884821,1769627445582,-1480.12871606,0.0004171,7]
[403884822,1769627445591,-1000.0,0.00041749,30]
[403884823,1769627445600,-3007.84483858,0.000418,30]
[403884824,1769627445610,-559.17,0.00041863,30]
[403884825,1769627445619,-1231.6,0.00041863,30]
[403884826,1769627445628,-191.77,0.00041863,30]
[403884827,1769627445637,-150.87,0.00041863,30]
[403884828,1769627445647,-172.23,0.00041863,30]
[403884829,1769627445656,-231.58,0.00041863,30]
[403884830,1769627445665,-559.17,0.00041863,30]
[403884831,1769627445675,-180.06,0.00041863,30]
[403884832,1769627445684,-559.17,0.00041863,30]
[403884833,1769627445694,-180.06,0.00041863,30]
[403884834,1769627445703,-180.06,0.00041863,30]
[403884835,1769627445713,-559.17,0.00041863,30]
[403884836,1769627445723,-559.17,0.00041863,30]
[403884837,1769627445732,-323.47,0.00041863,30]
[403884838,1769627445742,-500.0,0.00041905,60]
[403884839,1769627445752,-1000.0,0.00042023,30]
[403884840,1769627445762,-220.76210575,0.000421,120]
[403884841,1769627445773,-625.76790586,0.00042141,120]
[403884842,1769627445783,-1309.25004735,0.00042141,120]
[403884843,1769627445792,-798.0,0.00042192,120]
[403884844,1769627445803,-1500.0,0.00042192,120]
[403884845,1769627445813,-1500.0,0.00042192,120]
[403884846,1769627445823,-1500.0,0.00042192,120]
[403884847,1769627445833,-1500.0,0.00042192,120]
[403884848,1769627445842,-1500.0,0.00042192,120]
[403884849,1769627445853,-1500.0,0.00042192,120]
[403884850,1769627445862,-1500.0,0.00042192,120]
[403884851,1769627445872,-1500.0,0.00042192,120]
[403884852,1769627445881,-1500.0,0.00042192,120]
[403884853,1769627445891,-1500.0,0.00042192,120]
[403884854,1769627445901,-1500.0,0.00042192,120]
[403884855,1769627445910,-228.668,0.00042192,120]
[403884856,1769627445919,-2061.0,0.00042213,30]
[403884857,1769627445929,-339.55023915,0.00042288,120]
[403884858,1769627445939,-1000.0,0.00042297,30]
[403884859,1769627445948,-158.90370729,0.00042358,120]
[403884860,1769627445958,-1500.0,0.000425,120]
[403884861,1769627445968,-217.40193971,0.00042544,14]
[403884862,1769627445977,-1999.0,0.00042571,30]
[403884863,1769627445987,-625.76790586,0.00042575,120]
[403884864,1769627445997,-1309.25004735,0.00042575,120]
[403884865,1769627446006,-2061.0,0.00042649,30]
[403884866,1769627446021,-798.0,0.0004274,120]
[403884867,1769627446031,-627.11489639,0.00042747,120]
[403884868,1769627446042,-509.5,0.00042778,2]
[403884869,1769627446053,-958.38,0.000428,120]
[403884870,1769627446066,-386.48,0.000428,30]
[403884871,1769627446075,-2000.0,0.00042847,120]
[403884872,1769627446086,-1003.95086698,0.00042847,2]
[403884873,1769627446099,-898.44608791,0.00042857,60]
[403884874,1769627446110,-240.46,0.00042899,120]
[403884875,1769627446119,-500.0,0.00042899,120]
[403884876,1769627446129,-500.0,0.00042899,120]
[403884877,1769627446139,-236.78879281,0.00042899,120]
[403884879,1769627446149,-155593.89516499,0.000429,3]
[403884881,1769627446159,-1000.0,0.000429,30]
[403884883,1769627446169,-9169.11530547,0.000429,3]
[403884884,1769627446179,-977.16126562,0.000429,30]
[403884885,1769627446188,-500.0,0.00043001,60]
[403884886,1769627446198,-625.76790586,0.0004301,120]
[403884887,1769627446207,-1309.25004735,0.0004301,120]
[403884888,1769627446217,-2000.0,0.00043047,120]
[403884889,1769627446226,-2061.0,0.00043084,30]
[403884890,1769627446235,-2000.0,0.00043247,120]
[403884891,1769627446245,-798.0,0.00043288,120]
[403884892,1769627446254,-14915.82584386,0.000433,30]
[403884893,1769627447053,-470.0885198,0.000433,30]
[403884894,1769627447089,-785.1468432,0.000433,30]
[403884895,1769627447105,-6859.42987902,0.000433,30]
[403884896,1769627447115,-285.76173398,0.000433,30]
[403884897,1769627447246,-500.0,0.00017372,2]
[403884898,1769627447256,-150.0,0.00017372,2]
[403884899,1769627447266,-500.0,0.00017427,2]
[403884900,1769627447277,-150.0,0.00017427,2]
[403884901,1769627447287,-500.0,0.00017482,2]
[403884902,1769627447296,-150.0,0.00017482,2]
[403884903,1769627447306,-150.0,0.00017536,2]
[403884904,1769627447317,-150.0,0.00017591,2]
[403884905,1769627447327,-151.0,0.00038356,120]
[403884906,1769627447337,-151.0,0.00038356,120]
[403884907,1769627447346,-292.23565072,0.00038743,2]
[403884908,1769627447360,-3398.94524865,0.00038743,2]
[403884909,1769627447371,-565.42290672,0.00038743,2]
[403884910,1769627447382,-2313.39619391,0.00038743,2]
[403884911,1769627447391,-714.23826602,0.000433,30]
[403884912,1769627447401,-1000.0,0.000433,30]
[403884913,1769627447410,-1000.0,0.000433,30]
[403884914,1769627447420,-1000.0,0.000433,30]
[403884915,1769627447430,-1000.0,0.000433,30]
[403884916,1769627447439,-1000.0,0.000433,30]
[403884917,1769627447448,-1000.0,0.000433,30]
[403884918,1769627447457,-1075.08,0.000433,30]
[403884919,1769627447466,-800.0,0.000433,16]
[403884920,1769627447475,-800.0,0.000433,16]
[403884921,1769627447484,-800.0,0.000433,16]
[403884922,1769627447494,-800.0,0.000433,16]
[403884923,1769627447505,-434.4629756,0.000433,16]
[403884924,1769627447515,-800.0,0.000433,16]
[403884925,1769627447524,-800.0,0.000433,16]
[403884926,1769627447533,-800.0,0.000433,16]
[403884927,1769627447542,-200.0,0.000433,16]
[403884928,1769627447551,-152.0,0.0004333,5]
[403884929,1769627447560,-1676.54263261,0.00043331,3]
[403884930,1769627447572,-323.45736739,0.00043331,3]
[403884931,1769627447581,-167.42,0.00043334,120]
[403884932,1769627447590,-270.33213239,0.00043334,30]
[403884933,1769627447602,-199.55256761,0.00043334,30]
[403884934,1769627447612,-180.26636561,0.000434,120]
[403884935,1769627447622,-507.00718983,0.000434,120]
[403884936,1769627447631,-822.29171772,0.000434,120]
[403884937,1769627447640,-200.0,0.000434,25]
[403884938,1769627447650,-161.02719989,0.00043408,11]
[403884939,1769627447661,-408.84237777,0.00043444,18]
[403884940,1769627447670,-1448.28076138,0.00043444,28]
[403884941,1769627447685,-147.3749882,0.00043444,28]
[403884942,1769627447695,-1039.95171242,0.00043444,2]
[403884943,1769627447704,-212.08876731,0.00043444,2]